fUST/lending_fUST_20251022
["ID","MTS","AMOUNT","RATE_DAILY","PERIOD"]
[392006273,1761085833191,-1081.69509949,0.00023899,2]
[392006274,1761085833200,-50000.0,0.00023899,2]
[392006275,1761085833210,-36095.43,0.000239,7]
[392006276,1761085833220,-500.0,0.000239,5]
[392006277,1761085833230,-168.0,0.00023916,2]
[392006278,1761085833240,-1000.0,0.00023937,2]
[392006279,1761085833249,-1000.0,0.00023937,2]
[392006280,1761085833259,-1000.0,0.00023937,2]
[392006281,1761085833269,-1000.0,0.00023937,2]
[392006282,1761085833279,-1000.0,0.00023937,2]
[392006283,1761085833288,-1000.0,0.00023937,2]
[392006284,1761085833297,-382.29313651,0.00023973,2]
[392006285,1761085833308,-637.27187622,0.00023973,2]
[392006286,1761085833317,-500.0,0.00023973,2]
[392006287,1761085833327,-177.75448653,0.00023973,2]
[392006288,1761085833336,-500.0,0.00023973,2]
[392006289,1761085833346,-500.0,0.00023973,2]
[392006290,1761085833355,-360.78124906,0.00023973,2]
[392006291,1761085833367,-139.21875094,0.00023973,2]
[392006292,1761085833376,-500.0,0.00023973,2]
[392006293,1761085833385,-210.78739302,0.00023973,2]
[392006294,1761085833427,401.85,0.00021891,2]
[392006295,1761085833439,-289.21260698,0.00023973,2]
[392006296,1761085833449,-395.97038211,0.00023973,2]
[392006297,1761085837798,150.0,0.00013991,30]
[392006302,1761085838253,172.22,0.00015263,30]
[392006313,1761085838621,-602.77,0.00023716,2]
[392006314,1761085838631,-104.02961789,0.00023973,2]
[392006315,1761085838640,-500.0,0.00023973,2]
[392006316,1761085838649,-395.56372545,0.00023973,2]
[392006317,1761085838658,-500.0,0.00023973,2]
[392006318,1761085838667,-500.0,0.00023973,2]
[392006319,1761085838677,-502.21448366,0.00023973,2]
[392006320,1761085838686,-504.4561376,0.00023973,2]
[392006321,1761085838695,-3420.0094611,0.00023987,2]
[392006322,1761085838708,-579.9905389,0.00023987,2]
[392006323,1761085838717,-1000.0,0.00023989,2]
[392006324,1761085838726,-1000.0,0.00023989,2]
[392006325,1761085838735,-924.85107536,0.0002399,2]
[392006326,1761085838747,-847.36548177,0.0002399,2]
[392006327,1761085838758,-5519.488,0.0002399,2]
[392006328,1761085838771,-55032.53111873,0.0002399,2]
[392006329,1761085838785,-37675.76432414,0.0002399,2]
[392006330,1761085838795,-151.0,0.0002399,7]
[392006331,1761085838805,-151.0,0.0002399,7]
[392006332,1761085838815,-151.0,0.0002399,7]
[392006333,1761085838824,-151.0,0.0002399,7]
[392006334,1761085838834,-151.0,0.0002399,7]
[392006335,1761085838843,-151.0,0.0002399,7]
[392006336,1761085838853,-151.0,0.0002399,7]
[392006337,1761085838862,-151.0,0.0002399,7]
[392006338,1761085838872,-151.0,0.0002399,7]
[392006339,1761085838882,-151.0,0.0002399,7]
[392006340,1761085838891,-151.0,0.0002399,7]
[392006341,1761085838901,-151.0,0.0002399,7]
[392006342,1761085838911,-151.0,0.0002399,7]
[392006343,1761085838920,-151.0,0.0002399,7]
[392006344,1761085838930,-151.0,0.0002399,7]
[392006345,1761085838939,-151.0,0.0002399,2]
[392006346,1761085838949,-151.0,0.0002399,7]
[392006347,1761085838959,-151.0,0.0002399,7]
[392006348,1761085838968,-151.0,0.0002399,7]
[392006349,1761085838977,-151.0,0.0002399,7]
[392006350,1761085838987,-151.0,0.0002399,7]
[392006351,1761085838997,-151.0,0.0002399,7]
[392006352,1761085839010,-232.251559,0.0002399,7]
[392006353,1761085839019,-232.251559,0.0002399,7]
[392006354,1761085839029,-232.251559,0.0002399,7]
[392006355,1761085839041,-232.251559,0.0002399,7]
[392006356,1761085839051,-151.0,0.0002399,7]
[392006357,1761085839060,-151.0,0.0002399,7]
[392006358,1761085839070,-151.0,0.0002399,7]
[392006359,1761085839080,-151.0,0.0002399,7]
[392006360,1761085839091,-151.0,0.0002399,7]
[392006361,1761085839102,-151.0,0.0002399,7]
[392006362,1761085839112,-151.0,0.0002399,7]
[392006363,1761085839121,-241.437225,0.0002399,7]
[392006364,1761085839131,-151.0,0.0002399,7]
[392006365,1761085839141,-151.0,0.0002399,7]
[392006366,1761085839152,-185.657161,0.0002399,7]
[392006367,1761085839161,-3004.316476,0.0002399,7]
[392006368,1761085839171,-185.657161,0.0002399,7]
[392006369,1761085839180,-151.0,0.0002399,7]
[392006370,1761085839190,-3004.316476,0.0002399,7]
[392006371,1761085839199,-185.657161,0.0002399,7]
[392006372,1761085839209,-3004.316476,0.0002399,7]
[392006373,1761085839219,-500.0,0.0002399,2]
[392006374,1761085839229,-1000.0,0.00023991,2]
[392006375,1761085839239,-1644.0,0.00023999,2]
[392006376,1761085839248,-1000.0,0.00023999,2]
[392006377,1761085839258,-1000.0,0.00023999,2]
[392006378,1761085839267,-160.0,0.00024,7]
[392006379,1761085839278,-7425.25931834,0.00024,2]
[392006380,1761085839292,-154075.11517974,0.00024,2]
[392006381,1761085839301,-6240.44583184,0.00024,60]
[392006382,1761085839313,-19780.7292361,0.00024,60]
[392006383,1761085839324,-1774.11816301,0.00024,60]
[392006384,1761085839333,-232.251559,0.00024,7]
[392006385,1761085839343,-232.251559,0.00024,7]
[392006386,1761085839352,-232.251559,0.00024,7]
[392006387,1761085839361,-232.251559,0.00024,7]
[392006388,1761085839522,-277.824512,0.00024,7]
[392006389,1761085839532,-151.0,0.00024,7]
[392006390,1761085839541,-151.0,0.00024,7]
[392006391,1761085839551,-151.0,0.00024,7]
[392006392,1761085839561,-151.0,0.00024,7]
[392006393,1761085839572,-196.874076,0.00024,7]
[392006394,1761085839580,-156.536839,0.00024,7]
[392006395,1761085839589,-151.0,0.00024,7]
[392006396,1761085839599,-185.657161,0.00024,7]
[392006397,1761085839609,-3004.316476,0.00024,7]
[392006398,1761085839619,-185.657161,0.00024,7]
[392006399,1761085839630,-151.0,0.00024,7]
[392006400,1761085839640,-3004.316476,0.00024,7]
[392006401,1761085839649,-185.657161,0.00024,7]
[392006402,1761085839658,-3004.316476,0.00024,7]
[392006403,1761085839667,-1000.0,0.00024036,2]
[392006404,1761085839676,-624.71413189,0.00024037,2]
[392006405,1761085839686,-500.0,0.00024174,5]
[392006406,1761085839695,-1644.0,0.00024184,2]
[392006407,1761085839704,-1300.53277305,0.00024212,2]
[392006408,1761085839714,-500.0,0.00024264,2]
[392006409,1761085839723,-1405.60679675,0.00024269,2]
[392006410,1761085839732,-6000.0,0.00024277,2]
[392006411,1761085839742,-1340.3245235,0.00024278,2]
[392006412,1761085839751,-500.0,0.00024321,2]
[392006413,1761085839759,-1000.0,0.00024321,2]
[392006414,1761085839768,-1000.0,0.00024321,2]
[392006415,1761085839778,-1000.0,0.00024321,2]
[392006416,1761085839788,-1000.0,0.00024321,2]
[392006417,1761085839798,-1644.0,0.00024447,2]
[392006418,1761085839809,-500.0,0.00024448,5]
[392006419,1761085839820,-12483.39280288,0.00024473,2]
[392006420,1761085839829,-531.06798621,0.000245,2]
[392006421,1761085839839,-1000.0,0.00024521,2]
[392006422,1761085839848,-1000.0,0.00024521,2]
[392006423,1761085839857,-505.04600781,0.00024521,2]
[392006424,1761085839866,-1085.26809962,0.00024521,2]
[392006425,1761085839876,-1000.0,0.00024521,2]
[392006426,1761085839885,-1000.0,0.00024521,2]
[392006427,1761085839895,-1000.0,0.00024521,2]
[392006428,1761085839906,-1000.0,0.00024521,2]
[392006429,1761085839917,-1000.0,0.00024521,2]
[392006430,1761085839926,-500.0,0.00024538,2]
[392006431,1761085839936,-356.33561639,0.00024562,2]
[392006432,1761085839950,-944.19715667,0.00024562,2]
[392006433,1761085839960,-2448.0628186,0.0002457,2]
[392006434,1761085839969,-5213.58030803,0.0002457,2]
[392006435,1761085839980,-19021.35759496,0.0002457,2]
[392006436,1761085839992,-57885.18609811,0.0002457,2]
[392006437,1761085840007,-151.0,0.0002457,7]
[392006438,1761085840017,-151.0,0.0002457,7]
[392006439,1761085840026,-151.0,0.0002457,7]
[392006440,1761085840036,-151.0,0.0002457,7]
[392006441,1761085840047,-151.0,0.0002457,7]
[392006442,1761085840057,-151.0,0.0002457,7]
[392006443,1761085840068,-151.0,0.0002457,7]
[392006444,1761085840078,-151.0,0.0002457,7]
[392006445,1761085840091,-151.0,0.0002457,7]
[392006446,1761085840100,-151.0,0.0002457,7]
[392006447,1761085840110,-151.0,0.0002457,7]
[392006448,1761085840120,-151.0,0.0002457,7]
[392006449,1761085840129,-151.0,0.0002457,7]
[392006450,1761085840139,-151.0,0.0002457,7]
[392006451,1761085840148,-151.0,0.0002457,7]
[392006452,1761085840158,-151.0,0.0002457,7]
[392006453,1761085840167,-151.0,0.0002457,7]
[392006454,1761085840177,-151.0,0.0002457,7]
[392006455,1761085840186,-151.0,0.0002457,7]
[392006456,1761085840196,-151.0,0.0002457,7]
[392006457,1761085840206,-151.0,0.0002457,7]
[392006458,1761085840215,-189.004058,0.0002457,7]
[392006459,1761085840226,-151.0,0.0002457,2]
[392006460,1761085840235,-205.423072,0.0002457,7]
[392006461,1761085840246,-151.0,0.0002457,7]
[392006462,1761085840255,-151.0,0.0002457,7]
[392006463,1761085840264,-294.124355,0.0002457,7]
[392006464,1761085840274,-151.0,0.0002457,7]
[392006466,1761085840283,-151.0,0.0002457,7]
[392006467,1761085840293,-232.251559,0.0002457,7]
[392006468,1761085840303,-232.251559,0.0002457,7]
[392006469,1761085840315,-232.251559,0.0002457,7]
[392006470,1761085840324,-232.251559,0.0002457,7]
[392006471,1761085840333,-151.0,0.0002457,7]
[392006472,1761085840343,-151.0,0.0002457,7]
[392006473,1761085840352,-151.0,0.0002457,7]
[392006474,1761085840362,-151.0,0.0002457,7]
[392006475,1761085840372,-185.657161,0.0002457,7]
[392006476,1761085840383,-3004.316476,0.0002457,7]
[392006477,1761085840393,-185.657161,0.0002457,7]
[392006478,1761085840402,-199.22532662,0.0002457,7]
[392006479,1761085840414,-2805.09114938,0.0002457,7]
[392006480,1761085840423,-185.657161,0.0002457,7]
[392006481,1761085840434,-3004.316476,0.0002457,7]
[392006482,1761085840444,-500.0,0.00024573,2]
[392006483,1761085840454,-500.0,0.00024573,2]
[392006485,1761085840463,-158.09137901,0.00024573,2]
[392006486,1761085840473,-500.0,0.00024573,2]
[392006487,1761085840483,-158.48602444,0.00024573,2]
[392006488,1761085840492,-500.0,0.00024573,2]
[392006489,1761085840501,-250.85868638,0.00024573,2]
[392006490,1761085840511,-500.0,0.00024573,2]
[392006491,1761085840520,-1000.0,0.000246,2]
[392006492,1761085840531,-568.95566202,0.00024615,2]
[392006493,1761085840543,-288.7334223,0.00024633,3]
[392006494,1761085840552,-256.35321827,0.00024658,2]
[392006495,1761085840562,-1154.93368921,0.0002466,3]
[392006496,1761085840572,-2598.60080072,0.00024689,3]
[392006497,1761085840581,-361.66960289,0.00024689,3]
[392006499,1761085840589,-1000.0,0.000247,2]
[392006500,1761085840598,-500.0,0.00024722,5]
[392006502,1761085840607,-1000.0,0.00024776,2]
[392006503,1761085840616,-1000.0,0.00024776,2]
[392006504,1761085840626,-1000.0,0.00024776,2]
[392006505,1761085840635,-1000.0,0.00024776,2]
[392006506,1761085840645,-1000.0,0.00024776,2]
[392006507,1761085840654,-1000.0,0.00024776,2]
[392006508,1761085840663,-1000.0,0.00024776,2]
[392006509,1761085840673,-1000.0,0.00024776,2]
[392006510,1761085840682,-1000.0,0.00024776,2]
[392006511,1761085840691,-1000.0,0.00024776,2]
[392006512,1761085840700,-1000.0,0.00024776,2]
[392006514,1761085840711,-1000.0,0.00024776,2]
[392006515,1761085840722,-1000.0,0.00024776,2]
[392006516,1761085840731,-1000.0,0.00024776,2]
[392006517,1761085840740,-1000.0,0.00024776,2]
[392006518,1761085840749,-1000.0,0.00024776,2]
[392006519,1761085840759,-1000.0,0.00024776,2]
[392006520,1761085840768,-1000.0,0.00024776,2]
[392006521,1761085840778,-336.06546791,0.00024776,2]
[392006522,1761085840790,-663.93453209,0.00024776,2]
[392006523,1761085840799,-681.7136,0.00024776,2]
[392006524,1761085840809,-1000.0,0.000248,2]
[392006525,1761085840820,-2186.42243903,0.00024814,2]
[392006526,1761085840829,-500.0,0.00024838,2]
[392006527,1761085840838,-1500.0,0.00024868,2]
[392006528,1761085840847,-1500.0,0.00024868,2]
[392006529,1761085840856,-1000.0,0.00024868,2]
[392006530,1761085840865,-500.0,0.00024873,2]
[392006531,1761085840874,-500.0,0.00024873,2]
[392006532,1761085840883,-150.0,0.00024873,2]
[392006533,1761085840892,-150.0,0.00024873,2]
[392006534,1761085840901,-151.0,0.00024873,2]
[392006535,1761085840911,-500.0,0.00024873,2]
[392006536,1761085840920,-271.75701662,0.00024873,2]
[392006537,1761085840930,-155.33062553,0.00024873,2]
[392006538,1761085840939,-151.0,0.00024873,2]
[392006539,1761085840948,-151.0,0.00024873,2]
[392006540,1761085840958,-9000.0,0.00024896,2]
[392006541,1761085840967,-200.0,0.00024899,2]
[392006542,1761085840976,-1000.0,0.00024899,2]
[392006543,1761085840985,-377.02877421,0.00024899,2]
[392006544,1761085840995,-151.0,0.000249,7]
[392006545,1761085841006,-151.0,0.000249,7]
[392006546,1761085841017,-151.0,0.000249,7]
[392006547,1761085841026,-151.0,0.000249,7]
[392006548,1761085841036,-151.0,0.000249,7]
[392006549,1761085841045,-151.0,0.000249,7]
[392006550,1761085841057,-273.519545,0.000249,7]
[392006551,1761085841070,-151.0,0.000249,7]
[392006552,1761085841079,-151.0,0.000249,7]
[392006553,1761085841091,-151.0,0.000249,7]
[392006554,1761085841100,-151.0,0.000249,7]
[392006555,1761085841110,-151.0,0.000249,7]
[392006556,1761085841119,-151.0,0.000249,7]
[392006557,1761085841129,-151.0,0.000249,7]
[392006558,1761085841138,-151.0,0.000249,7]
[392006559,1761085841147,-151.0,0.000249,7]
[392006560,1761085841157,-151.0,0.000249,7]
[392006561,1761085841166,-151.0,0.000249,7]
[392006562,1761085841175,-151.0,0.000249,7]
[392006563,1761085841185,-151.0,0.000249,7]
[392006564,1761085841195,-265.477496,0.000249,7]
[392006565,1761085841205,-151.29549066,0.000249,7]
[392006566,1761085841215,-151.0,0.000249,7]
[392006567,1761085841224,-151.0,0.000249,7]
[392006568,1761085841234,-151.0,0.000249,7]
[392006569,1761085841243,-151.0,0.000249,7]
[392006570,1761085841253,-151.0,0.000249,7]
[392006571,1761085841262,-151.0,0.000249,7]
[392006572,1761085841272,-151.0,0.000249,7]
[392006573,1761085841281,-151.0,0.000249,7]
[392006574,1761085841290,-151.0,0.000249,7]
[392006575,1761085841299,-151.0,0.000249,7]
[392006576,1761085841309,-151.0,0.000249,7]
[392006577,1761085841322,-151.0,0.000249,7]
[392006578,1761085841331,-40496.80126209,0.000249,2]
[392006579,1761085841344,-66004.81527826,0.000249,2]
[392006580,1761085841355,-247274.40490815,0.000249,2]
[392006581,1761085841367,-18951.79836024,0.000249,2]
[392006582,1761085841380,-15414.56105126,0.000249,2]
[392006583,1761085841389,-151.0,0.000249,7]
[392006584,1761085841399,-151.0,0.000249,7]
[392006585,1761085841409,-151.0,0.000249,7]
[392006586,1761085841420,-151.0,0.000249,7]
[392006587,1761085841431,-151.0,0.000249,7]
[392006588,1761085841441,-151.0,0.000249,2]
[392006589,1761085841451,-151.0,0.000249,7]
[392006590,1761085841460,-151.0,0.000249,7]
[392006591,1761085841469,-274.244604,0.000249,7]
[392006592,1761085841478,-232.251559,0.000249,7]
[392006593,1761085841488,-232.251559,0.000249,7]
[392006594,1761085841498,-232.251559,0.000249,7]
[392006595,1761085841508,-232.251559,0.000249,7]
[392006596,1761085841518,-151.0,0.000249,7]
[392006597,1761085841527,-151.0,0.000249,7]
[392006598,1761085841537,-209.827988,0.000249,7]
[392006599,1761085841546,-151.0,0.000249,7]
[392006600,1761085841555,-185.657161,0.000249,7]
[392006601,1761085841568,-3004.316476,0.000249,7]
[392006602,1761085841578,-185.657161,0.000249,7]
[392006603,1761085841587,-3004.316476,0.000249,7]
[392006604,1761085841596,-185.657161,0.000249,7]
[392006605,1761085841606,-153.10145376,0.00024928,2]
[392006606,1761085841616,-535.29032752,0.00024928,2]
[392006607,1761085841625,-160.0,0.00024935,2]
[392006608,1761085841635,-500.0,0.00024996,5]
[392006609,1761085841645,-200.34174568,0.00025,2]
[392006610,1761085841654,-1000.0,0.00025,2]
[392006611,1761085841663,-13260.48929025,0.00025,7]
[392006612,1761085841672,-1500.0,0.00025068,2]
[392006613,1761085841681,-1500.0,0.00025068,2]
[392006614,1761085841690,-1500.0,0.00025068,2]
[392006615,1761085841699,-1500.0,0.00025068,2]
[392006616,1761085841709,-1500.0,0.00025068,2]
[392006617,1761085841719,-1500.0,0.00025068,2]
[392006618,1761085841729,-269.0,0.00025085,2]
[392006619,1761085841738,-3819.0,0.00025093,2]
[392006620,1761085841748,-269.0,0.00025105,2]
[392006621,1761085841757,-1000.0,0.00025121,2]
[392006622,1761085841766,-269.0,0.0002515,2]
[392006623,1761085841775,-358.65568953,0.00025185,2]
[392006624,1761085841784,-826.64,0.00025198,3]
[392006625,1761085841793,-413.32,0.00025198,3]
[392006626,1761085841803,-269.0,0.00025202,2]
[392006627,1761085841816,-12483.39280284,0.00025205,2]
[392006628,1761085841826,-269.0,0.0002522,2]
[392006629,1761085841835,-269.0,0.00025257,2]
[392006630,1761085841845,-500.0,0.0002527,5]
[392006631,1761085841854,-338.69011965,0.00025313,2]
[392006632,1761085841863,-8425.34394225,0.00025319,2]
[392006633,1761085841872,-3819.0,0.00025395,2]
[392006634,1761085841881,-2000.0,0.00025416,2]
[392006635,1761085841891,-2000.0,0.00025416,2]
[392006636,1761085841901,-1000.0,0.00025421,2]
[392006637,1761085841910,-500.0,0.00025421,2]
[392006638,1761085841920,-250.0,0.00025421,2]
[392006639,1761085841930,-300.0,0.00025421,2]
[392006640,1761085841971,-260.0,0.00025483,2]
[392006641,1761085841981,-200.0,0.00025499,2]
[392006642,1761085841991,-1000.0,0.000255,2]
[392006643,1761085842002,-4668.88429281,0.000255,7]
[392006644,1761085842017,-18684.11529836,0.000255,7]
[392006645,1761085842065,258.33,0.00016535,30]
[392006646,1761085842128,344.44,0.00017807,30]
[392006647,1761085842225,430.55,0.00019078,30]
[392006648,1761085842267,516.66,0.0002035,30]
[392006649,1761085842504,-185.657161,0.0002399,7]
[392006650,1761085842513,-2029.61343685,0.0002399,7]
[392006651,1761085842554,602.77,0.00021622,30]
[392006652,1761085842601,688.88,0.00022894,30]
[392006660,1761085843880,-381.7496312,0.0002399,7]
[392006661,1761085843891,-592.95340795,0.0002399,7]
[392006662,1761085843904,-185.657161,0.00024,7]
[392006663,1761085843913,-3004.316476,0.00024,7]
[392006664,1761085843921,-774.99,0.00024166,30]
[392006665,1761085843931,-185.657161,0.0002457,7]
[392006666,1761085843939,-3004.316476,0.0002457,7]
[392006667,1761085843950,-2282.24024068,0.000249,7]
[392006695,1761085848050,-722.07623532,0.000249,7]
[392006696,1761085848061,-185.657161,0.000249,7]
[392006697,1761085848074,-190.96660368,0.000249,7]
[392006698,1761085849670,300.0,0.000235,2]
[392006699,1761085851576,300.0,0.000208,2]
[392006700,1761085860158,300.0,0.000235,2]
[392006701,1761085862683,300.0,0.000208,2]
[392006702,1761085870979,300.0,0.000235,2]
[392006703,1761085873820,300.0,0.000208,2]
[392006704,1761085880020,200.0,0.00035079,120]
[392006705,1761085882135,300.0,0.000235,2]
[392006706,1761085885442,300.0,0.000208,2]
[392006707,1761085900599,196.0,0.00016,2]
[392006708,1761085900662,196.0,0.00016021,2]
[392006709,1761085900731,196.0,0.00016042,2]
[392006710,1761085900802,196.0,0.00016064,2]
[392006711,1761085900883,196.0,0.00016085,2]
[392006712,1761085900949,196.0,0.00016106,2]
[392006713,1761085901021,196.0,0.00016127,2]
[392006714,1761085901094,196.0,0.00016148,2]
[392006715,1761085901166,196.0,0.0001617,2]
[392006716,1761085901253,196.0,0.00016191,2]
[392006717,1761085901329,196.0,0.00016212,2]
[392006718,1761085901416,196.0,0.00016233,2]
[392006719,1761085901485,196.0,0.00016255,2]
[392006720,1761085901560,196.0,0.00016276,2]
[392006721,1761085901643,196.0,0.00016297,2]
[392006722,1761085901914,196.0,0.00016318,2]
[392006723,1761085901948,196.0,0.00016339,2]
[392006724,1761085901986,196.0,0.00016361,2]
[392006725,1761085902020,196.0,0.00016382,2]
[392006726,1761085902062,196.0,0.00016403,2]
[392006727,1761085902108,196.0,0.00016424,2]
[392006728,1761085902178,196.0,0.00016445,2]
[392006729,1761085902246,196.0,0.00016467,2]
[392006730,1761085902315,196.0,0.00016488,2]
[392006731,1761085902501,196.0,0.00016509,2]
[392006732,1761085902565,196.0,0.0001653,2]
[392006733,1761085902637,196.0,0.00016552,2]
[392006734,1761085902839,196.0,0.00016573,2]
[392006735,1761085903055,196.0,0.00016594,2]
[392006736,1761085903152,196.0,0.00016615,2]
[392006737,1761085903270,196.0,0.00016636,2]
[392006738,1761085903362,196.0,0.00016658,2]
[392006739,1761085903486,196.0,0.00016679,2]
[392006740,1761085903558,196.0,0.000167,2]
[392006741,1761085903626,196.0,0.00016721,2]
[392006742,1761085903694,196.0,0.00016742,2]
[392006743,1761085903768,196.0,0.00016764,2]
[392006744,1761085903925,196.0,0.00016785,2]
[392006745,1761085903965,196.0,0.00016806,2]
[392006746,1761085904005,196.0,0.00016827,2]
[392006747,1761085904063,196.0,0.00016848,2]
[392006748,1761085904139,196.0,0.0001687,2]
[392006749,1761085904207,196.0,0.00016891,2]
[392006750,1761085904278,196.0,0.00016912,2]
[392006751,1761085904343,196.0,0.00016933,2]
[392006752,1761085904446,196.0,0.00016955,2]
[392006753,1761085904519,196.0,0.00016976,2]
[392006754,1761085904589,196.0,0.00016997,2]
[392006755,1761085904658,196.0,0.00017018,2]
[392006756,1761085904725,196.0,0.00017039,2]
[392006757,1761085904790,196.0,0.00017061,2]
[392006758,1761085904867,196.0,0.00017082,2]
[392006759,1761085904937,196.0,0.00017103,2]
[392006760,1761085905006,196.0,0.00017124,2]
[392006761,1761085905077,196.0,0.00017145,2]
[392006762,1761085905155,196.0,0.00017167,2]
[392006763,1761085905233,196.0,0.00017188,2]
[392006764,1761085905299,196.0,0.00017209,2]
[392006765,1761085905390,196.0,0.0001723,2]
[392006766,1761085905457,196.0,0.00017252,2]
[392006767,1761085905526,196.0,0.00017273,2]
[392006768,1761085905599,196.0,0.00017294,2]
[392006769,1761085905677,196.0,0.00017315,2]
[392006770,1761085905748,196.0,0.00017336,2]
[392006771,1761085905917,196.0,0.00017358,2]
[392006772,1761085905989,196.0,0.00017379,2]
[392006773,1761085906099,196.0,0.000174,2]
[392006774,1761085906186,196.0,0.00017421,2]
[392006775,1761085906318,196.0,0.00017442,2]
[392006776,1761085906860,196.0,0.00017464,2]
[392006777,1761085906930,196.0,0.00017485,2]
[392006778,1761085907025,196.0,0.00017506,2]
[392006779,1761085907095,196.0,0.00017527,2]
[392006780,1761085907164,196.0,0.00017548,2]
[392006781,1761085907233,196.0,0.0001757,2]
[392006782,1761085907304,196.0,0.00017591,2]
[392006783,1761085907377,196.0,0.00017612,2]
[392006784,1761085907457,196.0,0.00017633,2]
[392006785,1761085907532,196.0,0.00017655,2]
[392006786,1761085907599,196.0,0.00017676,2]
[392006787,1761085907663,196.0,0.00017697,2]
[392006788,1761085907733,196.0,0.00017718,2]
[392006789,1761085907794,4.01,0.00017739,2]
[392006790,1761085907818,191.99,0.00017739,2]
[392006791,1761085907879,196.0,0.00017761,2]
[392006792,1761085907973,196.0,0.00017782,2]
[392006793,1761085908172,196.0,0.00017803,2]
[392006794,1761085908233,196.0,0.00017824,2]
[392006795,1761085908291,196.0,0.00017845,2]
[392006796,1761085908413,196.0,0.00017867,2]
[392006797,1761085908461,196.0,0.00017888,2]
[392006798,1761085908520,196.0,0.00017909,2]
[392006799,1761085908609,196.0,0.0001793,2]
[392006800,1761085908732,196.0,0.00017952,2]
[392006801,1761085908790,196.0,0.00017973,2]
[392006802,1761085908844,196.0,0.00017994,2]
[392006803,1761085909280,-196.0,0.00018015,2]
[392006804,1761085909314,-196.0,0.00018036,2]
[392006805,1761085909349,-196.0,0.00018058,2]
[392006806,1761085909385,-196.0,0.00018079,2]
[392006807,1761085909418,-586.15558608,0.000181,2]
[392006808,1761085912325,-2740.31117216,0.000181,2]
[392006809,1761085915039,150.0,0.0001341,30]
[392006810,1761085915479,217.59,0.00014629,30]
[392006811,1761085916034,326.39,0.00015848,30]
[392006812,1761085916492,435.19,0.00017067,30]
[392006813,1761085916933,543.98,0.00018286,30]
[392006814,1761085917362,652.78,0.00019505,30]
[392006815,1761085917857,761.58,0.00020724,30]
[392006816,1761085925022,2767.40816881,0.00018,2]
[392006817,1761085930526,-4519.38765568,0.000181,2]
[392006818,1761085945512,-253.86,0.00019963,2]
[392006819,1761085960609,-300.0,0.000207,2]
[392006820,1761085964173,300.0,0.000207,2]
[392006821,1761085976001,300.0,0.000207,2]
[392006822,1761085986909,300.0,0.000207,2]
[392006823,1761085991094,256.79,0.00019967,2]
[392006824,1761085995395,150.0,0.00013929,30]
[392006825,1761085995802,220.11,0.00015196,30]